bitfinex-derivatives/quotes_SOLF0:USTF0_20250301
["timestamp","ask_amount","ask_price","bid_price","bid_amount"]
[1740864164679,0.05434694,140.77,140.73,7.16264322]
[1740864164875,7.16114694,140.77,140.73,7.16264322]
[1740864166371,0.05434694,140.77,140.74,7.1079]
[1740864166571,0.05434694,140.77,140.73,0.05464322]
[1740864167185,0.05434694,140.77,140.76,7.1069]
[1740864171388,0.05434694,140.77,140.73,0.05464322]
[1740864171891,0.05434694,140.77,140.74,7.1078]
[1740864172490,0.05434694,140.77,140.75,7.1074]
[1740864175891,0.05434694,140.77,140.76,7.1069]
[1740864176991,194.0,140.81,140.73,0.05464322]
[1740864177592,194.0,140.81,140.78,7.1056]
[1740864178285,194.04565189,140.81,140.78,7.15717541]
[1740864181387,194.04565189,140.81,140.78,0.05157541]
[1740864182097,7.1054,140.79,140.78,0.05157541]
[1740864185003,194.04565189,140.81,140.78,0.05157541]
[1740864186003,201.15045189,140.81,140.78,0.05157541]
[1740864186194,194.04565189,140.81,140.78,0.05157541]
[1740864186702,7.1049,140.8,140.78,0.05157541]
[1740864189504,201.15035189,140.81,140.78,0.05157541]
[1740864191505,7.1054,140.79,140.78,0.05157541]
[1740864194405,23.11040582,140.79,140.78,0.05157541]
[1740864197713,7.1054,140.79,140.78,0.05157541]
[1740864200214,29.44049569,140.79,140.73,7.1082]
[1740864200409,194.0,140.78,140.73,7.1082]
[1740864201005,7.1073,140.76,140.73,7.1082]
[1740864201215,0.05156664,140.76,140.75,7.1074]
[1740864202805,194.0,140.78,140.73,0.04652471]
[1740864203719,194.0,140.78,140.75,7.1072]
[1740864203918,0.04483605,140.77,140.75,7.1072]
[1740864204314,0.04483605,140.77,140.73,0.04652471]
[1740864204522,0.04483605,140.77,140.76,7.1069]
[1740864204717,194.0,140.78,140.73,0.04652471]
[1740864205716,194.0,140.78,140.77,7.1064]
[1740864208816,190.9664,140.78,140.77,7.1064]
[1740864209022,190.9664,140.78,140.77,9.0195]
[1740864209524,190.9664,140.78,140.77,1.9131]
[1740864210217,190.9664,140.78,140.77,9.0195]
[1740864210412,0.05316856,140.79,140.77,1.9131]
[1740864211729,0.05316856,140.79,140.78,7.1059]
[1740864223427,141.10564839,140.84,140.82,7.1036]
[1740864224036,141.10564839,140.84,140.83,7.1034]
[1740864225137,132.00664839,140.84,140.83,7.1034]
[1740864225924,77.81159324,140.88,140.84,7.1025]
[1740864226124,84.91279324,140.88,140.82,0.04984723]
[1740864226739,84.91279324,140.88,140.82,7.15364723]
[1740864227239,77.81159324,140.88,140.82,0.04984723]
[1740864227430,7.1022,140.86,140.82,0.04984723]
[1740864227629,77.81159324,140.88,140.82,0.04984723]
[1740864228936,7.1023,140.86,140.82,0.04984723]
[1740864229240,77.81159324,140.88,140.82,0.04984723]
[1740864229440,1.9449,140.9,140.82,0.04984723]
[1740864229640,7.1025,140.85,140.82,0.04984723]
[1740864229844,1.9449,140.9,140.82,0.04984723]
[1740864230433,1.9449,140.9,140.82,7.15364723]
[1740864230642,7.102,140.86,140.82,7.15364723]
[1740864231142,1.9449,140.9,140.82,0.04984723]
[1740864231336,7.103,140.84,140.82,0.04984723]
[1740864232736,1.9449,140.9,140.82,7.15364723]
[1740864233243,7.1022,140.86,140.82,7.15364723]
[1740864236444,1.9449,140.9,140.82,7.15364723]
[1740864236646,7.1024,140.85,140.82,7.15364723]
[1740864237547,7.1021,140.86,140.82,7.15364723]
[1740864240550,7.1025,140.85,140.82,0.04984723]
[1740864241443,7.1025,140.85,140.82,7.15374723]
[1740864242647,7.1022,140.86,140.82,7.15374723]
[1740864243742,7.1012,140.88,140.82,0.04984723]
[1740864244450,7.1006,140.89,140.84,7.1025]
[1740864244849,7.1009,140.88,140.85,0.04577529]
[1740864245046,1.9449,140.9,140.85,0.04577529]
[1740864245350,1.14921728,140.89,140.85,0.04577529]
[1740864245649,7.1019,140.86,140.85,0.04577529]
[1740864250248,79.75649324,140.9,140.85,0.04577529]
[1740864250949,86.85669324,140.9,140.87,7.101]
[1740864251650,77.81159324,140.9,140.88,7.1008]
[1740864254253,77.81159324,140.9,140.86,10.32]
[1740864254553,84.91149324,140.9,140.86,10.32]
[1740864254745,7.0999,140.9,140.86,10.32]
[1740864255540,0.3027,140.92,140.85,0.04577529]
[1740864255947,7.1012,140.88,140.85,0.04577529]
[1740864256257,1.8536,140.91,140.85,0.04577529]
[1740864256557,7.1016,140.87,140.85,0.04577529]
[1740864257752,7.1016,140.87,140.85,7.14807529]
[1740864258157,1.8536,140.91,140.85,0.04577529]
[1740864258454,1.8536,140.91,140.88,7.1008]
[1740864258847,8.9534,140.91,140.88,7.14701399]
[1740864259453,7.0998,140.91,140.89,7.1004]
[1740864259658,52.81063123,140.92,140.89,7.1004]
[1740864259951,47.56602106,140.92,140.89,7.1004]
[1740864260543,7.0995,140.91,140.88,7.14691399]
[1740864268758,0.3027,140.92,140.88,7.14691399]
[1740864269064,7.0998,140.91,140.88,7.14691399]
[1740864269248,0.3027,140.92,140.88,0.04621399]
[1740864269450,0.3027,140.92,140.83,10.32]
[1740864269750,7.1012,140.88,140.83,10.32]
[1740864269947,7.1012,140.88,140.85,7.1022]
[1740864270659,7.14818768,140.88,140.85,7.15570854]
[1740864271757,7.14818768,140.88,140.85,0.05350854]
[1740864271959,7.14818768,140.88,140.86,7.1018]
[1740864272354,7.14818768,140.88,140.85,0.05350854]
[1740864272654,7.14818768,140.88,140.85,7.15570854]
[1740864272852,0.04698768,140.88,140.85,7.15570854]
[1740864273054,7.1015,140.87,140.85,7.15570854]
[1740864275653,7.1019,140.86,140.85,0.05350854]
[1740864277363,0.04698768,140.88,140.85,7.15560854]
[1740864277862,7.14818768,140.88,140.85,7.15560854]
[1740864281162,0.04698768,140.88,140.85,7.15560854]
[1740864281362,7.1014,140.87,140.85,7.15560854]
[1740864283070,0.04698768,140.88,140.85,0.05350854]
[1740864283369,7.14808768,140.88,140.86,7.1019]
[1740864289975,0.04698768,140.88,140.85,0.05350854]
[1740864290768,7.1019,140.86,140.85,0.05350854]
[1740864292880,0.04698768,140.88,140.85,0.05350854]
[1740864293063,7.1016,140.87,140.85,7.15590854]
[1740864294868,7.1019,140.86,140.85,7.15590854]
[1740864295478,7.1019,140.86,140.85,0.05350854]
[1740864301786,22.93788057,140.86,140.85,0.05350854]
[1740864304285,7.1019,140.86,140.85,0.05350854]
[1740864304482,7.1016,140.87,140.85,0.05350854]
[1740864304689,29.64871274,140.88,140.85,0.05350854]
[1740864306489,0.04698768,140.88,140.85,0.05350854]
[1740864307487,0.04698768,140.88,140.85,7.15580854]
[1740864307680,0.04698768,140.88,140.85,0.05350854]
[1740864307880,0.04698768,140.88,140.85,3.88070854]
[1740864308083,0.04698768,140.88,140.87,7.1014]
[1740864308283,45.4533984,140.89,140.87,7.1014]
[1740864308582,15.85167334,140.89,140.87,7.1014]
[1740864311900,7.0996,140.91,140.87,7.1014]
[1740864312994,29.60172506,140.92,140.85,5.85570854]
[1740864313298,36.70072506,140.92,140.85,5.85570854]
[1740864314395,36.70072506,140.92,140.89,7.1003]
[1740864314597,7.099,140.92,140.89,7.1003]
[1740864314796,7.099,140.92,140.89,7.15061686]
[1740864314996,36.70032506,140.93,140.89,7.15061686]
[1740864316185,7.0989,140.92,140.89,7.15061686]
[1740864318200,29.60172506,140.93,140.9,7.0998]
[1740864318797,54.36484778,140.94,140.9,7.0998]
[1740864318997,47.26674778,140.94,140.91,7.0992]
[1740864320100,54.36464778,140.94,140.91,7.0992]
[1740864321404,7.0979,140.94,140.91,7.0992]
[1740864321610,7.0975,140.95,140.91,7.0992]
[1740864321793,7.0975,140.95,140.92,7.0987]
[1740864325806,7.0975,140.95,140.91,7.1462482]
[1740864327009,7.0975,140.95,140.91,0.0471482]
[1740864327211,7.0975,140.95,140.92,7.0989]
[1740864327912,7.0971,140.96,140.93,7.0982]
[1740864328213,29.60172506,140.98,140.93,7.0982]
[1740864328398,29.60172506,140.98,140.93,7.14511695]
[1740864329000,7.0972,140.96,140.93,7.14511695]
[1740864330015,7.0968,140.97,140.94,7.0978]
[1740864330199,29.60172506,140.98,140.94,7.0978]
[1740864330400,45.37007044,140.99,140.93,0.04691695]
[1740864330614,7.0962,140.98,140.96,7.0968]
[1740864331010,45.37007044,140.99,140.96,7.14753265]
[1740864331207,52.46577044,140.99,140.96,7.14753265]
[1740864331514,45.37007044,140.99,140.96,7.14753265]
[1740864332014,45.37007044,140.99,140.96,0.05073265]
[1740864332216,52.46567044,140.99,140.96,0.05073265]
[1740864332415,45.37007044,140.99,140.96,0.05073265]
[1740864333517,29.60172506,141.01,140.96,0.05073265]
[1740864333919,36.69642506,141.01,140.96,7.14723265]
[1740864334425,7.0951,141.0,140.96,0.05073265]
[1740864335320,29.60172506,141.01,140.96,0.05073265]
[1740864335707,7.0956,140.99,140.96,0.05073265]
[1740864336818,1.8318,141.02,140.96,0.05073265]
[1740864338320,7.0951,141.0,140.96,7.14733265]
[1740864338524,108.79567782,141.05,140.96,0.05073265]
[1740864338824,7.0946,141.01,140.97,7.0961]
[1740864339124,108.79567782,141.05,140.99,0.05019803]
[1740864339422,7.0936,141.03,140.99,7.14549803]
[1740864339609,108.79567782,141.05,140.99,0.05019803]
[1740864339813,1.14787805,141.04,140.99,0.05019803]
[1740864340521,7.0948,141.0,140.99,0.05019803]
[1740864343624,10.32,141.03,140.92,17.4187]
[1740864343920,4.98904295,141.02,140.92,17.4187]
[1740864344115,7.0976,140.95,140.92,17.4187]
[1740864344310,3.8408,141.02,140.92,10.32]
[1740864344511,1.14827911,141.01,140.93,7.098]
[1740864344716,0.04982524,140.98,140.96,0.04846762]
[1740864345222,7.0968,140.97,140.96,0.04846762]
[1740864351031,7.0964,140.97,140.96,0.04846762]
[1740864355431,7.14602524,140.98,140.96,0.04846762]
[1740864355633,0.04982524,140.98,140.96,0.04846762]
[1740864356132,7.0964,140.97,140.96,0.04846762]
[1740864360231,0.04982524,140.98,140.92,10.32]
[1740864360424,0.04982524,140.98,140.89,1.9363]
[1740864360425,7.0984,140.93,140.89,12.2363]
[1740864360623,7.0984,140.93,140.9,7.0995]
[1740864361426,7.0995,140.91,140.9,0.04903938]
[1740864365042,7.1016,140.87,140.83,5.876]
[1740864365237,7.1016,140.87,140.84,10.32]
[1740864365431,7.1016,140.87,140.84,17.4228]
[1740864366037,7.1016,140.87,140.84,10.32]
[1740864366244,0.0448868,140.87,140.84,0.05212179]
[1740864366734,0.0448868,140.87,140.84,7.15462179]
[1740864367436,0.0448868,140.87,140.85,7.1024]
[1740864368640,0.0448868,140.87,140.84,7.15482179]
[1740864369540,0.0448868,140.87,140.84,0.05212179]
[1740864369840,0.0448868,140.87,140.85,7.1024]
[1740864370537,0.0448868,140.87,140.84,0.05212179]
[1740864370737,0.0448868,140.87,140.86,7.1019]
[1740864371442,36.70032506,140.93,140.89,7.1]
[1740864371834,29.60172506,140.93,140.9,7.0998]
[1740864372034,29.60172506,140.93,140.87,10.32]
[1740864372545,29.60172506,140.93,140.91,7.0991]
[1740864372943,0.04504059,140.93,140.91,7.0991]
[1740864373942,0.04504059,140.93,140.92,7.0989]
[1740864374839,0.04504059,140.93,140.91,7.0992]
[1740864375538,0.04504059,140.93,140.89,7.15197819]
[1740864375751,0.04504059,140.93,140.89,0.05187819]
[1740864376445,7.14364059,140.93,140.9,7.0996]
[1740864376859,7.14364059,140.93,140.89,0.05187819]
[1740864377340,0.04504059,140.93,140.92,7.0989]
[1740864385041,0.04504059,140.93,140.91,9.0363]
[1740864385242,0.04504059,140.93,140.91,7.0991]
[1740864387445,7.14364059,140.93,140.91,7.0991]
[1740864387649,7.14364059,140.93,140.9,7.0997]
[1740864388955,7.14364059,140.93,140.91,7.0992]
[1740864389252,0.04504059,140.93,140.89,0.05187819]
[1740864389454,0.04504059,140.93,140.92,7.0989]
[1740864393853,192.8198,140.99,140.95,7.097]
[1740864394050,1.8534,140.99,140.95,7.097]
[1740864394360,151.43500394,141.0,140.97,7.096]
[1740864395058,151.48366875,141.0,140.97,7.15017655]
[1740864395448,158.57876875,141.0,140.97,7.15017655]
[1740864395949,7.14376481,141.0,140.97,0.05417655]
[1740864397756,0.04866481,141.0,140.98,7.0958]
[1740864397957,0.04866481,141.0,140.97,0.05417655]
[1740864398860,7.14376481,141.0,140.97,7.15027655]
[1740864399052,7.14376481,141.0,140.97,0.05417655]
[1740864399562,7.0959,140.98,140.97,0.05417655]
[1740864402362,7.0977,140.95,140.92,7.0986]
[1740864403453,7.0977,140.95,140.93,7.0984]
[1740864403657,7.15176355,140.95,140.93,7.0984]
[1740864403963,7.15176355,140.95,140.92,7.15146504]
[1740864404563,0.05406355,140.95,140.92,7.15146504]
[1740864404962,0.05406355,140.95,140.91,7.0992]
[1740864405165,0.05406355,140.95,140.78,16.75467841]
[1740864405166,7.1014,140.87,140.78,16.75467841]
[1740864405362,7.1014,140.87,140.79,5.722]
[1740864406064,7.1014,140.87,140.81,7.1041]
[1740864406267,0.04820348,140.84,140.82,0.04916328]
[1740864406562,0.04820348,140.84,140.82,7.15296328]
[1740864406765,7.101,140.88,140.82,7.15296328]
[1740864407868,0.05176308,140.86,140.82,7.15296328]
[1740864409365,0.05176308,140.86,140.82,0.04916328]
[1740864409567,0.05176308,140.86,140.83,7.103]
[1740864412269,107.4133183,140.92,140.82,0.04916328]
[1740864412463,107.4133183,140.92,140.8,10.3]
[1740864413266,7.1003,140.9,140.84,7.1024]
[1740864413563,0.05258505,140.87,140.85,0.04724459]
[1740864413769,0.05258505,140.87,140.85,7.14964459]
[1740864416177,0.05258505,140.87,140.85,0.04724459]
[1740864417467,7.15418505,140.87,140.85,0.04724459]
[1740864418382,7.1019,140.86,140.85,0.04724459]
[1740864418879,0.05258505,140.87,140.85,0.04724459]
[1740864423275,0.05258505,140.87,140.85,7.14944459]
[1740864423578,0.05258505,140.87,140.85,0.04724459]
[1740864424075,7.1019,140.86,140.85,0.04724459]
[1740864424274,0.05258505,140.87,140.79,1.9583]
[1740864424479,7.1047,140.81,140.77,135.64240859]
[1740864424979,192.9431,140.86,140.77,135.64240859]
[1740864425181,190.9664,140.85,140.77,135.64240859]
[1740864425377,0.0502817,140.83,140.8,0.05216208]
[1740864426782,0.0502817,140.83,140.81,7.1044]
[1740864427275,0.0502817,140.83,140.82,7.1039]
[1740864427880,29.60172506,140.89,140.84,7.1026]
[1740864428077,29.60172506,140.89,140.82,10.32]
[1740864428282,7.1024,140.85,140.82,10.32]
[1740864428766,29.60172506,140.89,140.82,10.32]
[1740864429082,7.1029,140.84,140.82,10.37222112]
[1740864429277,0.05291934,140.85,140.82,0.05222112]
[1740864429476,7.1034,140.83,140.82,0.05222112]
[1740864430779,7.1031,140.84,140.82,0.05222112]
[1740864431680,7.15561934,140.85,140.82,0.05222112]
[1740864431875,0.05291934,140.85,140.82,0.05222112]
[1740864432071,0.05291934,140.85,140.82,10.37222112]
[1740864432883,0.05291934,140.85,140.83,7.1034]
[1740864434980,0.05291934,140.85,140.82,10.37222112]
[1740864435786,7.15541934,140.85,140.82,17.47582112]
[1740864436083,7.15541934,140.85,140.82,10.37222112]
[1740864437990,7.103,140.84,140.82,10.37222112]
[1740864438487,0.05291934,140.85,140.82,0.05222112]
[1740864438787,7.1034,140.83,140.82,0.05222112]
[1740864453607,7.1032,140.84,140.82,0.05222112]
[1740864454407,7.15561934,140.85,140.82,0.05222112]
[1740864454997,0.05291934,140.85,140.82,0.05222112]
[1740864455598,0.05291934,140.85,140.82,7.15612112]
[1740864456405,7.15551934,140.85,140.82,7.15612112]
[1740864456907,0.05291934,140.85,140.82,0.05222112]
[1740864457097,0.05291934,140.85,140.83,7.1034]
[1740864457297,0.05291934,140.85,140.82,0.05222112]
[1740864457607,0.05291934,140.85,140.82,7.15582112]
[1740864460307,0.05291934,140.85,140.82,0.05222112]
[1740864460509,0.05291934,140.85,140.83,7.1033]
[1740864460911,0.05291934,140.85,140.83,10.32]
[1740864461814,0.05291934,140.85,140.83,17.4233]
[1740864462910,29.60172506,140.88,140.83,10.32]
[1740864463110,29.60172506,140.88,140.84,1.9101]
[1740864464208,36.70292506,140.88,140.84,1.9101]
[1740864464405,29.60172506,140.88,140.84,1.9101]
[1740864464912,36.70292506,140.88,140.84,9.0126]
[1740864465109,36.70292506,140.88,140.84,1.9101]
[1740864466112,36.70292506,140.88,140.85,7.1024]
[1740864466503,36.70292506,140.88,140.85,7.15508182]
[1740864466923,7.1012,140.88,140.85,7.15508182]
[1740864469224,151.60635653,140.92,140.85,7.15508182]
[1740864469427,47.27710725,140.92,140.85,0.05268182]
[1740864469724,47.27710725,140.92,140.85,1.98228182]
[1740864469915,54.37630725,140.92,140.85,1.98228182]
[1740864470121,54.37630725,140.92,140.88,7.1006]
[1740864470319,47.27710725,140.92,140.88,7.1006]
[1740864470509,7.0994,140.91,140.89,0.05426944]
[1740864471125,54.37630725,140.92,140.89,0.05426944]
[1740864471725,7.0999,140.9,140.89,0.05426944]
[1740864480026,7.1022,140.86,140.83,10.32]
[1740864480728,7.1022,140.86,140.83,17.4231]
[1740864481223,7.14714296,140.86,140.83,17.46964376]
[1740864485424,7.14714296,140.86,140.83,10.36654376]
[1740864486931,7.14714296,140.86,140.83,17.46994376]
[1740864487131,7.1024,140.85,140.83,10.36654376]
[1740864487628,0.04494296,140.86,140.83,10.36654376]
[1740864487931,7.14714296,140.86,140.83,10.36654376]
[1740864488228,7.14714296,140.86,140.83,17.46994376]
[1740864488429,7.1027,140.85,140.83,10.36654376]
[1740864490232,7.1027,140.85,140.83,17.46994376]
[1740864490733,0.04494296,140.86,140.84,7.1027]
[1740864492534,0.04494296,140.86,140.85,7.1024]
[1740864492931,29.60172506,140.89,140.84,1.9678]
[1740864493139,29.60172506,140.89,140.88,7.1009]
[1740864494940,45.42767356,140.91,140.89,7.1004]
[1740864495441,45.42767356,140.91,140.89,7.0999]
[1740864495639,45.42767356,140.91,140.88,10.3]
[1740864496138,45.42767356,140.91,140.9,7.0999]
[1740864497838,20.63222506,140.96,140.88,10.3]
[1740864498143,20.63222506,140.96,140.89,1.9688]
[1740864498441,20.63222506,140.96,140.92,7.0985]
[1740864498840,20.63222506,140.96,140.91,0.04669378]
[1740864499037,20.63222506,140.96,140.93,7.098]
[1740864500048,227.3,141.0,140.93,7.098]
[1740864500436,227.3,141.0,140.95,0.05275653]
[1740864500437,7.0964,140.97,140.95,0.05275653]
[1740864502145,227.3,141.0,140.95,0.05275653]
[1740864502947,7.0959,140.98,140.95,0.05275653]
[1740864507254,7.0959,140.98,140.95,7.15005653]
[1740864509857,7.0968,140.97,140.95,0.05275653]
[1740864510360,7.0969,140.96,140.95,0.05275653]
[1740864510960,7.0966,140.97,140.95,0.05275653]
[1740864514876,227.3,141.0,140.9,12.2333]
[1740864515069,1.14837692,140.99,140.81,7.41029918]
[1740864515274,1.14837692,140.99,140.85,14.0628]
[1740864515472,7.0984,140.93,140.91,7.0991]
[1740864515770,7.0984,140.93,140.85,14.0628]
[1740864515981,7.0984,140.93,140.9,7.0996]
[1740864516364,7.1525625,140.93,140.9,7.0996]
[1740864517272,7.099,140.92,140.9,7.0996]
[1740864518080,7.0998,140.91,140.88,7.14915614]
[1740864518577,0.0541625,140.93,140.88,0.04855614]
[1740864518876,7.0991,140.92,140.89,7.1001]
[1740864519277,7.0996,140.91,140.88,7.14925614]
[1740864520178,7.1002,140.9,140.88,0.04855614]
[1740864520364,0.0541625,140.93,140.88,0.04855614]
[1740864521182,7.1004,140.89,140.88,0.04855614]
[1740864524687,0.04831038,140.9,140.88,0.04855614]
[1740864524983,7.14841038,140.9,140.88,0.04855614]
[1740864525181,0.04831038,140.9,140.88,0.04855614]
[1740864525987,0.04831038,140.9,140.88,7.14895614]
[1740864529887,7.14821038,140.9,140.88,7.14895614]
[1740864530085,0.04831038,140.9,140.88,0.04855614]
[1740864531488,7.1004,140.89,140.88,0.04855614]
[1740864535092,0.04831038,140.9,140.88,0.04855614]
[1740864535696,0.04831038,140.9,140.89,7.1004]
[1740864536314,0.04831038,140.9,140.88,0.04855614]
[1740864536315,0.04831038,140.9,140.88,7.14925614]
[1740864536814,0.04831038,140.9,140.88,0.04855614]
[1740864537022,0.04831038,140.9,140.89,7.1004]
[1740864538431,29.53893242,140.94,140.93,7.0984]
[1740864539220,8.9791,140.96,140.89,1.8967]
[1740864539419,8.9791,140.96,140.92,7.0987]
[1740864539626,0.02266885,140.94,140.92,7.0987]
[1740864539926,0.02266885,140.94,140.91,0.0546754]
[1740864540134,7.0984,140.93,140.91,0.0546754]
[1740864541025,7.12076885,140.94,140.91,7.1539754]
[1740864541529,0.02266885,140.94,140.93,7.0984]
[1740864541932,0.02266885,140.94,140.91,0.0546754]
[1740864542633,0.02266885,140.94,140.92,7.0986]
[1740864544131,0.02266885,140.94,140.93,7.0984]
[1740864544332,0.02266885,140.94,140.91,0.0546754]
[1740864544728,0.02266885,140.94,140.92,7.0986]
[1740864544926,0.02266885,140.94,140.91,0.0546754]
[1740864545327,0.02266885,140.94,140.93,7.0984]
[1740864548931,0.02266885,140.94,140.93,17.3984]
[1740864563800,17.46858749,140.99,140.93,10.3]
[1740864564108,17.46858749,140.99,140.97,7.0959]
[1740864565014,17.46858749,140.99,140.97,0.05216637]
[1740864565199,24.56398749,140.99,140.97,0.05216637]
[1740864567809,24.56398749,140.99,140.97,7.14846637]
[1740864570215,7.0959,140.98,140.97,0.05216637]
[1740864576808,17.46858749,140.99,140.97,0.05216637]
[1740864577014,24.56418749,140.99,140.97,0.05216637]
[1740864577520,24.56418749,140.99,140.97,7.14856637]
[1740864578922,17.46858749,140.99,140.98,7.0959]
[1740864579518,24.56398749,140.99,140.97,7.14826637]
[1740864580320,24.56398749,140.99,140.97,0.05216637]
[1740864580922,7.0959,140.98,140.97,0.05216637]
[1740864581122,17.46858749,140.99,140.93,10.3]
[1740864581506,7.0972,140.96,140.93,17.398]
[1740864581911,7.0972,140.96,140.93,10.3]
[1740864582112,7.0972,140.96,140.93,17.3981]
[1740864582326,7.14532411,140.96,140.93,17.45160878]
[1740864582514,0.04812411,140.96,140.93,0.05350878]
[1740864583234,0.04812411,140.96,140.94,7.0974]
[1740864583417,0.04812411,140.96,140.93,0.05350878]
[1740864583823,7.14502411,140.96,140.93,7.15150878]
[1740864587126,0.04812411,140.96,140.93,0.05350878]
[1740864587326,0.04812411,140.96,140.94,7.0974]
[1740864587930,0.04812411,140.96,140.93,0.05350878]
[1740864588226,0.04812411,140.96,140.95,7.0974]
[1740864590622,0.04812411,140.96,140.94,7.0976]
[1740864592329,7.0976,140.95,140.93,7.15160878]
[1740864593929,0.04812411,140.96,140.93,0.05350878]
[1740864594630,0.04812411,140.96,140.94,7.0974]
[1740864597533,0.04812411,140.96,140.93,0.05350878]
[1740864597733,0.04812411,140.96,140.95,7.0974]
[1740864602333,0.04812411,140.96,140.93,0.05350878]
[1740864602540,7.14502411,140.96,140.94,7.0976]
[1740864605638,7.14502411,140.96,140.93,0.05350878]
[1740864605844,0.04812411,140.96,140.93,0.05350878]
[1740864606443,0.04812411,140.96,140.95,7.0974]
[1740864607940,0.04812411,140.96,140.93,0.05350878]
[1740864608130,7.14532411,140.96,140.93,7.15160878]
[1740864608831,0.04812411,140.96,140.93,0.05350878]
[1740864609143,7.0979,140.94,140.93,0.05350878]
[1740864610341,7.14532411,140.96,140.93,7.15160878]
[1740864610549,0.04812411,140.96,140.93,0.05350878]
[1740864611749,7.14512411,140.96,140.94,7.0976]
[1740864611952,0.04812411,140.96,140.94,7.0976]
[1740864612144,29.58705653,140.96,140.93,0.05350878]
[1740864612744,29.58705653,140.96,140.94,7.0976]
[1740864613343,29.58705653,140.96,140.95,7.0974]
[1740864614548,0.04812411,140.96,140.95,7.0974]
[1740864617355,0.04812411,140.96,140.93,0.05350878]
[1740864617655,0.04812411,140.96,140.94,7.0976]
[1740864618253,7.0974,140.95,140.93,0.05350878]
[1740864618451,0.04812411,140.96,140.93,0.05350878]
[1740864618852,7.0979,140.94,140.93,0.05350878]
[1740864619053,0.04812411,140.96,140.87,10.9901796]
[1740864619054,1.8421,140.95,140.87,0.7101796]
[1740864619249,1.14879233,140.94,140.87,0.7101796]
[1740864619856,7.1002,140.9,140.87,7.8112796]
[1740864620156,0.04609883,140.9,140.87,0.04657934]
[1740864621553,0.04609883,140.9,140.88,7.1009]
[1740864621744,0.04609883,140.9,140.87,0.04657934]
[1740864621941,0.04609883,140.9,140.89,7.1004]
[1740864622151,227.18,140.94,140.88,10.28]
[1740864622452,1.8421,140.95,140.88,10.28]
[1740864622650,134.28613532,140.93,140.92,7.0986]
[1740864623052,134.28613532,140.93,140.84,1.8729]
[1740864623350,0.04755645,140.9,140.84,1.8729]
[1740864623551,0.04755645,140.9,140.87,0.05464218]
[1740864623752,7.14785645,140.9,140.87,0.05464218]
[1740864625458,7.1005,140.89,140.87,0.05464218]
[1740864625654,0.04755645,140.9,140.87,0.05464218]
[1740864626355,0.04755645,140.9,140.89,7.1004]
[1740864626549,0.04755645,140.9,140.87,0.05464218]
[1740864627059,0.04755645,140.9,140.88,7.1006]
[1740864627559,0.04755645,140.9,140.87,0.05464218]
[1740864627769,0.04755645,140.9,140.89,7.1004]
[1740864633757,5.645e-05,140.9,140.89,17.3804]
[1740864633958,47.06581595,140.96,140.94,7.0979]
[1740864634362,47.06581595,140.96,140.9,1.9401]
[1740864634661,47.06581595,140.96,140.94,7.0976]
[1740864634854,47.06581595,140.96,140.9,1.9401]
[1740864635054,47.06581595,140.96,140.94,0.0488797]
[1740864635353,54.16271595,140.96,140.94,0.0488797]
[1740864635761,47.06581595,140.96,140.94,0.0488797]
[1740864635957,78.94916023,140.97,140.94,0.0488797]
[1740864635958,36.70253508,140.97,140.94,7.1467797]
[1740864636869,29.60593508,140.97,140.96,7.0969]
[1740864638561,17.46858749,140.99,140.96,7.0969]
[1740864638766,17.46858749,140.99,140.97,7.0963]
[1740864639862,24.56398749,140.99,140.96,7.0966]
[1740864640068,24.56398749,140.99,140.94,10.3288797]
[1740864640669,24.56398749,140.99,140.95,7.0971]
[1740864640968,17.46858749,140.99,140.94,0.0488797]
[1740864641763,7.0974,140.95,140.94,0.0488797]
[1740864642270,7.0971,140.96,140.94,0.0488797]
[1740864643677,7.0971,140.96,140.94,7.1466797]
[1740864644178,7.0971,140.96,140.94,0.0488797]
[1740864646081,7.0974,140.95,140.94,0.0488797]
[1740864649089,7.0989,140.92,140.9,7.0996]
[1740864649780,7.0989,140.92,140.89,7.1002]
[1740864649969,7.0992,140.92,140.89,7.1002]
[1740864650175,0.04716968,140.92,140.89,7.14916947]
[1740864650372,0.04716968,140.92,140.89,0.04896947]
[1740864651380,7.0999,140.9,140.89,0.04896947]
[1740864652488,7.0996,140.91,140.89,0.04896947]
[1740864653288,0.04716968,140.92,140.89,0.04896947]
[1740864653484,7.14626968,140.92,140.89,7.14926947]
[1740864653884,0.04716968,140.92,140.89,0.04896947]
[1740864654689,0.04716968,140.92,140.91,7.0994]